Workbook

Sheet ACCUEIL
R1: 0.04 | S1: 25 ans
D2: CALCULS DES AMORTISSEMENTS | R2: 0.06 | S2: 16 ans +7 mois | T2: 7
R3: 0.08 | S3: 12 ans+6 mois | T3: 6
R4: 0.1 | S4: 10 ans
R5: 0.2 | S5: 5 ans
R6: 0.3 | S6: 3 ans+4 mois | T6: 4
R7: 0.4 | S7: 2 ans+6 mois | T7: 6
R8: 0.55 | S8: 1 an+9 mois | T8: 9
R9: 1 | S9: 1 an

Sheet LINEAIRE
B2: 8
B4: CALCULS AMORTISSEMENTS LINÉAIRE
B5: APPAREIL AMORTI → | C5: Droit au Bail
B6: DATE DE MISE EN SERVICE → | C6: 2024-03-12 | D6: DATE FIN EXERCICE → | F6: 2024-12-31
B7: MONTANT → | C7: 10000 | D7: TAUX D'AMORTISSEMENT | F7: 0.07692307692
D8: NB D'ANNÉES AMORTISSEMENT | F8: 13
B9: =IF(C7=0,"",IF(F8=0,"",IF(C6=0,"",IF(F6=0,"","NB de jour utilisation année "& YEAR(C6))))) -> NB de jour utilisation année 2024 | C9: =(F6-C6)/365*360 -> 289.9726027 | D9: Valeur mensuelle | F9: =IF($F$7=4%,$C$7/12/25,IF($F$7=6%,$C$7/12/16.666,IF($F$7=8%,$C$7/12/12.5,IF($F$7=10%,$C$7/12/10,IF($F$7=20%,$C$7/12/5,IF($F$7=30%,$C$7/12/3.333,IF($F$7=40%,$C$7/12/2.5,IF(F7=55%,$C$7/12/1.818,IF($F$7=100%,$C$7/12,C7/(F8*12)))))))))) -> 64.1025641
B10: ANNÉES AMORTISSEMENTS | C10: NB JOURS | D10: ="AMORT - "&(F8) -> AMORT - 13 | E10: Valeurs résiduelles | F10: valeurs amorties
B11: =" AN 1 " & YEAR($F$6) -> AN 1 2024 | C11: =C9 -> 289.9726027 | D11: =F9/30*C11 -> 619.5995785 | E11: =C7-D11 -> 9380.400421 | F11: =D11 -> 619.5995785
B12: =" AN " & ROW()-10 & " " & RIGHT(B11,4)+1 -> AN 2 2025 | C12: 360 | D12: =$F$9/30*C12 -> 769.2307692 | E12: =C7-F12 -> 8611.169652 | F12: =F11+D12 -> 1388.830348
B13: =" AN " & ROW()-10 & " " & RIGHT(B12,4)+1 -> AN 3 2026 | C13: 360 | D13: =$F$9/30*C13 -> 769.2307692 | E13: =INDIRECT("E" & ROW()-1)-D13 -> 7841.938883 | F13: 2158.061117
B14: AN 4 2027 | C14: 360 | D14: =$F$9/30*C14 -> 769.2307692 | E14: =INDIRECT("E" & ROW()-1)-D14 -> 7072.708114 | F14: 2927.291886
B15: AN 5 2028 | C15: 360 | D15: 769.2307692 | E15: 6303.477345 | F15: 3696.522655
B16: AN 6 2029 | C16: 360 | D16: 769.2307692 | E16: 5534.246575 | F16: 4465.753425
B17: AN 7 2030 | C17: 360 | D17: 769.2307692 | E17: 4765.015806 | F17: 5234.984194
B18: AN 8 2031 | C18: 360 | D18: 769.2307692 | E18: 3995.785037 | F18: 6004.214963
B19: AN 9 2032 | C19: 360 | D19: 769.2307692 | E19: 3226.554268 | F19: 6773.445732
B20: AN 10 2033 | C20: 360 | D20: 769.2307692 | E20: 2457.323498 | F20: 7542.676502
B21: AN 11 2034 | C21: 360 | D21: 769.2307692 | E21: 1688.092729 | F21: 8311.907271
B22: AN 12 2035 | C22: 360 | D22: 769.2307692 | E22: 918.86196 | F22: 9081.13804
B23: AN 13 2036 | C23: 360 | D23: 769.2307692 | E23: 149.6311907 | F23: 9850.368809
B24: ="COMPLÉMENT AN"&(RIGHT($B$11,4)) -> COMPLÉMENT AN2024 | C24: 70.02739726 | D24: =INDIRECT("E"&ROW()-1) -> 149.6311907 | E24: 0 | F24: =F23+D24 -> 10000

Sheet DEGRESSIF
B2: 3
B4: CALCULS AMORTISSEMENTS DÉGRESSIF
B5: APPAREIL AMORTI → | C5: Voiture
B6: DATE DE MISE EN SERVICE → | C6: 2024-03-01 | D6: DATE FIN EXERCICE → | F6: 2024-12-31
B7: MONTANT → | C7: 10000 | D7: NB D'ANNÉES AMORTISSEMENT | F7: 4
B8: TEMPS AMMORT | C8: De 2 à 4 ans | D8: de 5 à 6 ans | E8: 7 ans et + | F8: =IF($C$6="","",IF($F$6="","",IF(C7="","",IF(F7="","","NB de mois utilisation année "&YEAR(C6))))) -> NB de mois utilisation année 2024
B9: COEF amortissement | C9: 1.25 | D9: 1.75 | E9: 2.25
B10: TA =TAUX D'AMORTISSEMENT | C10: =IF(AND($F$7>2,$F$7<5),(1/$F$7)*$C9,"") -> 0.3125 | D10: =IF(AND($F$7>4,$F$7<7),(1/$F$7)*$D9,"") ->  | E10: =IF($F$7>6,(1/$F$7)*$E9,"") ->  | F10: =DATEDIF(C6,F6,"m") -> 9
B11: ANNÉES | C11: NB MOIS | D11: =IF(F7="","",IF(F7>0,"AMORT "&(F7) &" ANS")) -> AMORT 4 ANS | E11: Valeurs résiduelles | F11: Valeur amortie | G11: =C7/F7 -> 2500
B12: =" AN " &ROW()-11 & " " & YEAR($F$6) -> AN 1 2024 | C12: =F10 -> 9 | D12: =G12 -> 2343.75 | E12: =$C$7-D12 -> 7656.25 | F12: =D12 -> 2343.75 | G12: =IF(AND($F$7>2,$F$7<5),($C$7/12*F10)*$C$10, IF(AND($F$7>4,$F$7<7),($C$7/12*F10)*$D$10, IF($F$7>6,($C$7/12*F10)*$E$10,""))) -> 2343.75 | H12: =$F$7-(ROW()-12) -> 4
B13: =" AN " &ROW()-11 & " " & RIGHT(B12,4)+1 -> AN 2 2025 | C13: 12 | D13: =IF(G13<$G$11,E12/H13,G13) -> 2552.083333 | E13: =E12-D13 -> 5104.166667 | F13: =F12+D13 -> 4895.833333 | G13: =IF(AND($F$7>2,$F$7<5),(E12*$C$10), IF(AND($F$7>4,$F$7<7), (E12*$D$10),IF($F$7>6,(E12*$E$10),""))) -> 2392.578125 | H13: =$F$7-(ROW()-12) -> 3
B14: =" AN " &ROW()-11 & " " & RIGHT(B13,4)+1 -> AN 3 2026 | C14: 12 | D14: 2552.083333 | E14: =E13-D14 -> 2552.083333 | F14: =F13+D14 -> 7447.916667 | G14: =IF(AND($F$7>2,$F$7<5),(E13*$C$10), IF(AND($F$7>4,$F$7<7), (E13*$D$10),IF($F$7>6,(E13*$E$10),""))) -> 1595.052083 | H14: 2
B15: =" AN " &ROW()-11 & " " & RIGHT(B14,4)+1 -> AN 4 2027 | C15: 12 | D15: 2552.083333 | E15: =E14-D15 -> 0 | F15: =F14+D15 -> 10000 | G15: =IF(AND($F$7>2,$F$7<5),(E14*$C$10), IF(AND($F$7>4,$F$7<7), (E14*$D$10),IF($F$7>6,(E14*$E$10),""))) -> 797.5260417 | H15: 1
G16: 0 | H16: 0
G17: 0 | H17: -1
G18: 0 | H18: -2
G19: 0 | H19: -3
G20: 0 | H20: -4
G21: 0 | H21: -5
G22: 0 | H22: -6
G23: 0 | H23: -7
G24: 0 | H24: -8
G25: 0 | H25: -9
G26: 0 | H26: -10
G27: 0 | H27: -11
G28: 0 | H28: -12
G29: 0 | H29: -13
G30: 0 | H30: -14
G31: 0 | H31: -15
G32: 0 | H32: -16
G33: 0 | H33: -17
G34: 0 | H34: -18
G35: 0 | H35: -19
G36: 0 | H36: -20
G37: 0 | H37: -21

Sheet BD
A1: Matériel | B1: Date | C1: Montant | D1: Fin exercice | E1: % ou an | F1: Lin=vrai_Dégres=Faux | G1: Mois en + | H1: Droit Bail
A2: Tondeuse | B2: 2024-02-01 | C2: 5000 | D2: 2024-12-31 | E2: 0.3 | F2: VRAI | G2: 4
A3: Voiture | B3: 2024-03-01 | C3: 10000 | D3: 2024-12-31 | E3: 25 | F3: FAUX
A4: Fourgon | B4: 2024-03-08 | C4: 8000 | D4: 2024-12-31 | E4: 0.08 | F4: VRAI | G4: 6
A5: Tronconneuse | B5: 2024-03-09 | C5: 6000 | D5: 2024-12-31 | E5: 10 | F5: FAUX
A6: le 9_3 | B6: 2024-03-09 | C6: 8000 | D6: 2024-09-30 | E6: 0.06 | F6: VRAI | G6: 7
A7: essai du 10.03 | B7: 2024-03-10 | C7: 1000 | D7: 2024-09-30 | E7: 4 | F7: FAUX
A8: Droit au Bail | B8: 2024-03-12 | C8: 10000 | D8: 2024-12-31 | E8: 13 | F8: VRAI | H8: 1

Sheet LINEAIRE (2) (hidden)
B4: CALCULS AMORTISSEMENTS LINÉAIRE
B5: APPAREIL AMORTI → | C5: Tondeuse
B6: DATE DE MISE EN SERVICE → | C6: 2024-02-01 | D6: DATE FIN EXERCICE → | F6: 2024-12-31
B7: MONTANT → | C7: 5000 | D7: TAUX D'AMORTISSEMENT | F7: 0.04
D8: NB D'ANNÉES AMORTISSEMENT | F8: =IF(F7=4%,"25 ans",IF(F7=6%,"16 ans 7 mois",IF(F7=8%,"12.ans 6 mois",IF(F7=10%,"10 ans",IF(F7=20%,"5 ans",IF(F7=30%,"3 ans 4 mois",IF(F7=40%,"2 ans 6 mois",IF(F7=55%,"1 an 9 mois",IF(F7=100%,"1 an",IF(F7="Durée de bail","Durée du bail","")))))))))) -> 25 ans
B9: =IF(C7=0,"",IF(F8=0,"",IF(C6=0,"",IF(F6=0,"","NB de jour utilisation année "& YEAR(C6))))) -> NB de jour utilisation année 2024 | C9: =(F6-C6)/365*360 -> 329.4246575 | D9: Valeur mensuelle | F9: =IF($F$7=4%,$C$7/12/25,IF($F$7=6%,$C$7/12/16.666,IF($F$7=8%,$C$7/12/12.5,IF($F$7=10%,$C$7/12/10,IF($F$7=20%,$C$7/12/5,IF($F$7=30%,$C$7/12/3.333,IF($F$7=40%,$C$7/12/2.5,IF(F7=55%,$C$7/12/1.818,IF($F$7=100%,$C$7/12,C7/(F8*12)))))))))) -> 16.66666667
B10: ANNÉES AMORTISSEMENTS | C10: NB JOURS | D10: ="AMORT - "&(F8) -> AMORT - 25 ans | E10: Valeurs résiduelles | F10: valeurs amorties
B11: =" AN 1 " & YEAR($F$6) -> AN 1 2024 | C11: =C9 -> 329.4246575 | D11: =F9/30*C11 -> 183.0136986 | E11: =C7-D11 -> 4816.986301 | F11: =D11 -> 183.0136986
B12: =" AN " & ROW()-10 & " " & RIGHT(B11,4)+1 -> AN 2 2025 | C12: 360 | D12: =$F$9/30*C12 -> 200 | E12: =C7-F12 -> 4616.986301 | F12: =F11+D12 -> 383.0136986
B13: =" AN " & ROW()-10 & " " & RIGHT(B12,4)+1 -> AN 3 2026 | C13: 360 | D13: =$F$9/30*C13 -> 200 | E13: =INDIRECT("E" & ROW()-1)-D13 -> 4416.986301 | F13: 583.0136986
B14: AN 4 2027 | C14: 360 | D14: =$F$9/30*C14 -> 200 | E14: =INDIRECT("E" & ROW()-1)-D14 -> 4216.986301 | F14: 783.0136986
B15: AN 5 2028 | C15: 360 | D15: 200 | E15: 4016.986301 | F15: 983.0136986
B16: AN 6 2029 | C16: 360 | D16: 200 | E16: 3816.986301 | F16: 1183.013699
B17: AN 7 2030 | C17: 360 | D17: 200 | E17: 3616.986301 | F17: 1383.013699
B18: AN 8 2031 | C18: 360 | D18: 200 | E18: 3416.986301 | F18: 1583.013699
B19: AN 9 2032 | C19: 360 | D19: 200 | E19: 3216.986301 | F19: 1783.013699
B20: AN 10 2033 | C20: 360 | D20: 200 | E20: 3016.986301 | F20: 1983.013699
B21: AN 11 2034 | C21: 360 | D21: 200 | E21: 2816.986301 | F21: 2183.013699
B22: AN 12 2035 | C22: 360 | D22: 200 | E22: 2616.986301 | F22: 2383.013699
B23: AN 13 2036 | C23: 360 | D23: 200 | E23: 2416.986301 | F23: 2583.013699
B24: AN 14 2037 | C24: 360 | D24: 200 | E24: 2216.986301 | F24: 2783.013699
B25: AN 15 2038 | C25: 360 | D25: 200 | E25: 2016.986301 | F25: 2983.013699
B26: AN 16 2039 | C26: 360 | D26: 200 | E26: 1816.986301 | F26: 3183.013699
B27: AN 17 2040 | C27: 360 | D27: 200 | E27: 1616.986301 | F27: 3383.013699
B28: AN 18 2041 | C28: 360 | D28: 200 | E28: 1416.986301 | F28: 3583.013699
B29: AN 19 2042 | C29: 360 | D29: 200 | E29: 1216.986301 | F29: 3783.013699
B30: AN 20 2043 | C30: 360 | D30: 200 | E30: 1016.986301 | F30: 3983.013699
B31: AN 21 2044 | C31: 360 | D31: 200 | E31: 816.9863014 | F31: 4183.013699
B32: AN 22 2045 | C32: 360 | D32: 200 | E32: 616.9863014 | F32: 4383.013699
B33: AN 23 2046 | C33: 360 | D33: 200 | E33: 416.9863014 | F33: 4583.013699
B34: AN 24 2047 | C34: 360 | D34: 200 | E34: 216.9863014 | F34: 4783.013699
B35: AN 25 2048 | C35: 360 | D35: 200 | E35: 16.98630137 | F35: 4983.013699
B36: ="COMPLÉMENT AN"&(RIGHT($B$11,4)) -> COMPLÉMENT AN2024 | C36: =360-$C$11 -> 30.57534247 | D36: =INDIRECT("E"&ROW()-1) -> 16.98630137 | E36: 0 | F36: =F35+D36 -> 5000

Sheet DEGRESSIF (2) (hidden)
B4: CALCULS AMORTISSEMENTS DÉGRESSIF
B5: APPAREIL AMORTI → | C5: Voiture
B6: DATE DE MISE EN SERVICE → | C6: 2024-05-30 | D6: DATE FIN EXERCICE → | F6: 2024-12-31
B7: MONTANT → | C7: 10000 | D7: NB D'ANNÉES AMORTISSEMENT | F7: 25
B8: TEMPS AMMORT | C8: De 2 à 4 ans | D8: de 5 à 6 ans | E8: 7 ans et + | F8: ="NB de mois utilisation année "&YEAR(C6) -> NB de mois utilisation année 2024
B9: COEF amortissement | C9: 1.25 | D9: 1.75 | E9: 2.25
B10: TA =TAUX D'AMORTISSEMENT | C10: =IF(AND($F$7>2,$F$7<5),(1/$F$7)*$C9,"") ->  | D10: =IF(AND($F$7>4,$F$7<7),(1/$F$7)*$D9,"") ->  | E10: =IF($F$7>6,(1/$F$7)*$E9,"") -> 0.09 | F10: =DATEDIF(C6,F6,"m") -> 7
B11: ANNÉES | C11: NB MOIS | D11: =IF(F7="","",IF(F7>0,"AMORT "&(F7) &" ANS")) -> AMORT 25 ANS | E11: Valeurs résiduelles | F11: Valeur amortie | G11: =C7/F7 -> 400
B12: =" AN " &ROW()-11 & " " & YEAR($F$6) -> AN 1 2024 | C12: =F10 -> 7 | D12: =G12 -> 525 | E12: =$C$7-D12 -> 9475 | F12: =D12 -> 525 | G12: =IF(AND($F$7>2,$F$7<5),($C$7/12*F10)*$C$10, IF(AND($F$7>4,$F$7<7),($C$7/12*F10)*$D$10, IF($F$7>6,($C$7/12*F10)*$E$10,""))) -> 525 | H12: =F$7-(ROW()-12) -> 25
B13: =" AN " &ROW()-11 & " " & RIGHT(B12,4)+1 -> AN 2 2025 | C13: 12 | D13: =IF(G13<$G$11,E12/H13,G13) -> 852.75 | E13: =E12-D13 -> 8622.25 | F13: =F12+D13 -> 1377.75 | G13: =IF(AND($F$7>2,$F$7<5),(E12*$C$10), IF(AND($F$7>4,$F$7<7), (E12*$D$10),IF($F$7>6,(E12*$E$10),""))) -> 852.75 | H13: =F$7-(ROW()-12) -> 24
B14: =" AN " &ROW()-11 & " " & RIGHT(B13,4)+1 -> AN 3 2026 | C14: 12 | D14: 776.0025 | E14: =E13-D14 -> 7846.2475 | F14: =F13+D14 -> 2153.7525 | G14: =IF(AND($F$7>2,$F$7<5),(E13*$C$10), IF(AND($F$7>4,$F$7<7), (E13*$D$10),IF($F$7>6,(E13*$E$10),""))) -> 776.0025 | H14: 23
B15: =" AN " &ROW()-11 & " " & RIGHT(B14,4)+1 -> AN 4 2027 | C15: 12 | D15: 706.162275 | E15: =E14-D15 -> 7140.085225 | F15: =F14+D15 -> 2859.914775 | G15: =IF(AND($F$7>2,$F$7<5),(E14*$C$10), IF(AND($F$7>4,$F$7<7), (E14*$D$10),IF($F$7>6,(E14*$E$10),""))) -> 706.162275 | H15: 22
B16: =" AN " &ROW()-11 & " " & RIGHT(B15,4)+1 -> AN 5 2028 | C16: 12 | D16: 642.6076703 | E16: =E15-D16 -> 6497.477555 | F16: 3502.522445 | G16: 642.6076703 | H16: 21
B17: AN 6 2029 | C17: 12 | D17: 584.7729799 | E17: =E16-D17 -> 5912.704575 | F17: 4087.295425 | G17: 584.7729799 | H17: 20
B18: AN 7 2030 | C18: 12 | D18: 532.1434117 | E18: 5380.561163 | F18: 4619.438837 | G18: 532.1434117 | H18: 19
B19: AN 8 2031 | C19: 12 | D19: 484.2505047 | E19: 4896.310658 | F19: 5103.689342 | G19: 484.2505047 | H19: 18
B20: AN 9 2032 | C20: 12 | D20: 440.6679593 | E20: =E19-D20 -> 4455.642699 | F20: =F19+D20 -> 5544.357301 | G20: 440.6679593 | H20: 17
B21: AN 10 2033 | C21: 12 | D21: 401.0078429 | E21: 4054.634856 | F21: 5945.365144 | G21: 401.0078429 | H21: 16
B22: AN 11 2034 | C22: 12 | D22: =IF(G22<$G$11,E21/H22,G22) -> 270.3089904 | E22: 3784.325866 | F22: 6215.674134 | G22: 364.9171371 | H22: 15
B23: AN 12 2035 | C23: 12 | D23: 270.3089904 | E23: 3514.016875 | F23: 6485.983125 | G23: 340.5893279 | H23: 14
B24: AN 13 2036 | C24: 12 | D24: 270.3089904 | E24: 3243.707885 | F24: 6756.292115 | G24: 316.2615188 | H24: 13
B25: AN 14 2037 | C25: 12 | D25: 270.3089904 | E25: 2973.398895 | F25: 7026.601105 | G25: 291.9337096 | H25: 12
B26: AN 15 2038 | C26: 12 | D26: 270.3089904 | E26: 2703.089904 | F26: 7296.910096 | G26: 267.6059005 | H26: 11
B27: AN 16 2039 | C27: 12 | D27: 270.3089904 | E27: 2432.780914 | F27: 7567.219086 | G27: 243.2780914 | H27: 10
B28: AN 17 2040 | C28: 12 | D28: 270.3089904 | E28: 2162.471923 | F28: 7837.528077 | G28: 218.9502822 | H28: 9
B29: AN 18 2041 | C29: 12 | D29: 270.3089904 | E29: 1892.162933 | F29: 8107.837067 | G29: 194.6224731 | H29: 8
B30: AN 19 2042 | C30: 12 | D30: 270.3089904 | E30: 1621.853942 | F30: 8378.146058 | G30: 170.294664 | H30: 7
B31: AN 20 2043 | C31: 12 | D31: 270.3089904 | E31: 1351.544952 | F31: 8648.455048 | G31: 145.9668548 | H31: 6
B32: AN 21 2044 | C32: 12 | D32: 270.3089904 | E32: 1081.235962 | F32: 8918.764038 | G32: 121.6390457 | H32: 5
B33: AN 22 2045 | C33: 12 | D33: 270.3089904 | E33: 810.9269712 | F33: 9189.073029 | G33: 97.31123655 | H33: 4
B34: AN 23 2046 | C34: 12 | D34: 270.3089904 | E34: 540.6179808 | F34: 9459.382019 | G34: 72.98342741 | H34: 3
B35: AN 24 2047 | C35: 12 | D35: 270.3089904 | E35: 270.3089904 | F35: 9729.69101 | G35: 48.65561827 | H35: 2
B36: AN 25 2048 | C36: 12 | D36: 270.3089904 | E36: 0 | F36: 10000 | G36: 24.32780914 | H36: 1
